bitfinex/quotes_ETHUSD_20251212
["timestamp","ask_amount","ask_price","bid_price","bid_amount"]
[1765521851794,0.4497,3256.6,3256.3,0.58047529]
[1765521854102,0.4497,3256.6,3256.4,3.07087581]
[1765521854306,0.4497,3256.6,3256.4,6.14175162]
[1765521855003,0.3577,3256.5,3256.4,3.6513511]
[1765521855393,0.1859,3256.8,3256.4,4.1271511]
[1765521855598,0.6844,3256.8,3256.4,4.1271511]
[1765521856907,0.1859,3256.8,3256.4,4.1271511]
[1765521857096,0.4806,3256.7,3256.4,3.07087581]
[1765521857298,0.4708,3256.5,3255.6,0.406504]
[1765521857502,0.3547,3256.3,3255.8,0.405504]
[1765521857703,0.3547,3256.3,3255.8,2.36732009]
[1765521858012,0.8353,3256.3,3255.8,2.36732009]
[1765521858182,0.8353,3256.3,3255.9,1.35893922]
[1765521858378,0.3547,3256.3,3255.9,1.35893922]
[1765521858813,0.3547,3256.3,3256.0,6.14250614]
[1765521859108,0.4806,3256.5,3256.0,3.07125307]
[1765521859312,0.4806,3256.5,3256.0,3.65172836]
[1765521859612,0.4806,3256.5,3256.0,6.72298143]
[1765521860314,0.4806,3256.5,3256.0,7.66391797]
[1765521861282,0.4806,3256.5,3256.0,4.5926649]
[1765521866005,0.4806,3256.5,3256.0,7.66391797]
[1765521866195,0.4806,3256.5,3256.0,8.12331797]
[1765521867108,0.485,3256.8,3256.4,0.4791]
[1765521867519,0.485,3256.8,3256.4,0.9385]
[1765521867888,0.485,3256.8,3256.4,4.00929564]
[1765521868287,0.9656,3256.8,3256.4,4.00929564]
[1765521868488,0.4806,3256.8,3256.4,4.00929564]
[1765521869312,0.4806,3256.8,3256.4,3.54989564]
[1765521869713,0.4708,3256.5,3256.3,3.07092991]
[1765521870114,0.348,3256.4,3256.1,3.07115757]
[1765521870315,0.348,3256.4,3256.1,6.8630977]
[1765521872627,0.4806,3256.6,3256.1,6.8630977]
[1765521873718,0.4806,3256.6,3256.1,3.79193896]
[1765521873919,0.4806,3256.6,3256.1,3.07115757]
[1765521874223,0.4708,3256.2,3255.8,0.9219408]
[1765521874412,0.4708,3256.2,3255.9,3.0713474]
[1765521874617,0.9514,3256.2,3255.9,3.0713474]
[1765521875007,0.9514,3256.2,3255.9,6.1426948]
[1765521875206,0.4708,3256.2,3255.9,6.1426948]
[1765521875720,0.4708,3256.2,3255.9,3.0713474]
[1765521876130,0.1926,3256.9,3256.1,0.6461]
[1765521876320,0.1801,3257.9,3256.4,6.14175162]
[1765521876518,0.4806,3257.4,3256.9,0.4791]
[1765521877600,0.4806,3257.4,3256.5,0.97]
[1765521877793,0.4806,3257.4,3256.5,2.44766274]
[1765521877998,0.4806,3257.4,3256.6,0.4594]
[1765521878398,0.4806,3257.4,3256.7,3.07059293]
[1765521878845,3.07002732,3257.3,3256.7,3.07059293]
[1765521879601,0.4806,3257.2,3256.7,3.07059293]
[1765521881527,0.4806,3257.2,3256.7,3.92948619]
[1765521882230,0.4708,3256.8,3256.7,3.07059293]
[1765521882635,0.4708,3256.8,3256.6,3.07066794]
[1765521883131,0.4708,3256.8,3256.5,4.04074405]
[1765521883319,0.4708,3256.8,3256.6,3.07066114]
[1765521883912,0.4708,3256.8,3256.6,3.07068721]
[1765521884115,0.4708,3256.8,3256.6,3.78183284]
[1765521884830,0.4806,3257.0,3256.6,3.78183284]
[1765521885540,0.1986,3256.9,3256.5,3.07074518]
[1765521885830,0.4874,3256.6,3256.5,3.07074518]
[1765521886033,0.4887,3256.8,3256.4,0.58047529]
[1765521886236,0.4887,3256.8,3256.5,0.4548]
[1765521886606,0.4874,3256.6,3256.4,0.58047529]
[1765521886807,0.4874,3256.6,3256.3,3.6514454]
[1765521887007,0.4874,3256.4,3256.1,3.99299336]
[1765521887407,0.9761,3256.4,3256.1,3.07109505]
[1765521889343,0.4874,3256.4,3256.0,6.72298143]
[1765521889531,0.4874,3256.4,3256.1,0.75295562]
[1765521891011,0.4887,3256.6,3256.1,0.75295562]
[1765521891415,0.4887,3256.6,3256.1,3.82402345]
[1765521891811,3.55939152,3256.6,3256.0,0.58047529]
[1765521892010,3.55939152,3256.6,3256.0,3.65168106]
[1765521892011,0.4874,3256.1,3256.0,3.65168106]
[1765521892741,0.4887,3256.3,3256.1,3.07111721]
[1765521892912,0.4887,3256.5,3256.1,3.07111721]
[1765521895653,0.4887,3256.5,3256.1,6.14227595]
[1765521895852,3.55925109,3256.8,3256.4,0.4548]
[1765521896341,3.07055109,3256.8,3256.2,3.52448058]
[1765521896541,0.4887,3256.7,3256.2,3.07098058]
[1765521897652,0.6836,3256.9,3256.2,6.14204501]
[1765521897815,1.1723,3256.9,3256.3,0.4535]
[1765521898325,1.1723,3256.9,3256.4,3.07087581]
[1765521898951,0.6836,3256.9,3256.4,3.07087581]
[1765521899249,0.4887,3256.8,3256.4,3.07087581]
[1765521900552,0.6836,3256.9,3256.4,3.07087581]
[1765521900852,0.07446393,3534.3,3256.8,0.4548]
[1765521900853,0.1801,3257.9,3256.8,0.4548]
[1765521901057,0.4887,3257.6,3256.9,0.4548]
[1765521902963,3.06983883,3257.5,3256.9,0.4548]
[1765521903169,3.06955614,3257.8,3256.9,3.52520437]
[1765521903329,0.4887,3257.6,3256.9,0.4548]
[1765521905441,3.06983883,3257.5,3256.9,0.4548]
[1765521905643,6.13967766,3257.5,3256.9,0.4548]
[1765521905851,0.4887,3257.4,3256.9,0.4548]
[1765521906331,0.4874,3257.0,3256.8,3.07049551]
[1765521906660,0.4887,3257.4,3256.9,3.07040437]
[1765521906849,0.4887,3257.4,3256.9,3.52520437]
[1765521907049,3.55478236,3257.6,3256.9,3.52520437]
[1765521907358,0.4887,3257.5,3256.9,3.52520437]
[1765521909282,3.55855225,3257.5,3256.9,3.52520437]
[1765521909932,0.4887,3257.5,3256.9,6.59560874]
[1765521910130,0.4887,3257.5,3257.0,0.4535]
[1765521910861,0.4887,3257.5,3257.1,3.07021583]
[1765521911158,0.485,3257.6,3257.4,0.4548]
[1765521911460,3.06970089,3257.7,3257.4,0.4548]
[1765521911639,3.06959695,3257.8,3257.6,0.4548]
[1765521911840,3.74990606,3257.8,3257.6,0.4548]
[1765521912042,0.4874,3257.7,3257.2,0.4535]
[1765521912241,0.9761,3257.7,3257.2,0.4535]
[1765521912450,0.484,3257.9,3257.2,0.4535]
[1765521912745,4.24079736,3257.9,3257.2,0.4535]
[1765521912945,7.31029472,3257.9,3257.2,4.24808779]
[1765521913146,0.4603,3257.8,3257.2,3.79458779]
[1765521913346,0.4603,3257.8,3257.2,0.72450777]
[1765521913754,0.4895,3257.3,3256.9,0.6924249]
[1765521913955,0.3253,3257.2,3256.8,3.0704242]
[1765521914154,0.4879,3256.9,3256.5,0.9216604]
[1765521914360,0.4879,3256.9,3256.7,3.07058041]
[1765521914559,0.4603,3257.2,3256.7,3.07058041]
[1765521914760,0.4603,3257.2,3256.8,0.4856]
[1765521915149,0.4603,3257.2,3256.8,3.55605945]
[1765521920288,0.484,3257.5,3257.1,0.4542]
[1765521920642,0.9732,3257.5,3257.1,0.4542]
[1765521920866,4.04305873,3257.5,3257.1,0.4542]
[1765521921176,0.484,3257.5,3257.1,1.0782]
[1765521921490,3.06959843,3257.8,3257.4,0.4542]
[1765521921771,0.1986,3257.9,3257.4,0.4542]
[1765521921943,0.1986,3257.9,3257.4,0.9112]
[1765521922273,0.1986,3257.9,3257.4,3.98109887]
[1765521923277,0.6878,3257.9,3257.4,3.98109887]
[1765521923461,3.55331155,3258.1,3257.8,0.4542]
[1765521923776,0.484,3258.1,3257.8,0.4542]
[1765521923971,3.55327401,3258.1,3257.5,0.457]
[1765521924177,0.4504,3257.9,3257.4,3.06989887]
[1765521924562,0.4892,3257.8,3257.1,0.167]
[1765521924877,0.4892,3257.8,3257.3,3.06999279]
[1765521925392,0.4892,3257.8,3257.5,3.06983219]
[1765521925692,0.4892,3257.8,3257.3,0.457]
[1765521925886,0.4892,3257.8,3257.3,3.06998735]
[1765521926086,3.25796834,3257.9,3257.3,3.06998735]
[1765521926397,3.74716834,3257.9,3257.3,3.06998735]
[1765521926599,0.6777,3257.9,3257.3,3.06998735]
[1765521926896,0.6777,3257.9,3257.3,3.52698735]
[1765521927101,0.6777,3257.9,3257.3,3.84527052]
[1765521927394,3.74717794,3257.9,3257.3,3.84527052]
[1765521927590,3.25797794,3257.9,3257.3,3.06998735]
[1765521927784,0.4892,3257.8,3257.3,3.06998735]
[1765521927987,0.4892,3257.8,3257.2,3.652482]
[1765521928164,3.55882896,3257.8,3257.2,3.652482]
[1765521928364,3.55882896,3257.8,3257.1,3.55418564]
[1765521928566,0.4892,3257.7,3256.8,0.484]
[1765521929193,0.4892,3257.7,3257.1,3.07020374]
[1765521930293,3.06974459,3257.6,3256.9,3.0703984]
[1765521930799,0.4892,3257.5,3256.9,6.14080277]
[1765521931095,0.4892,3257.5,3256.9,6.84898305]
[1765521933204,3.06968886,3257.7,3257.4,0.4542]
[1765521933402,3.06968886,3257.7,3257.0,0.457]
[1765521933706,0.4892,3257.6,3257.0,0.457]
[1765521933907,3.06968886,3257.7,3257.0,0.457]
[1765521934202,0.61392536,3257.6,3257.1,0.167]
[1765521934807,0.61392536,3257.6,3257.5,0.4542]
[1765521935903,1.06432536,3257.6,3257.2,0.457]
[1765521937117,4.13407274,3257.6,3257.2,0.457]
[1765521937280,4.62327274,3257.6,3257.1,0.167]
[1765521937480,1.55352536,3257.6,3257.1,3.69418548]
[1765521939312,1.55352536,3257.6,3257.1,3.23718548]
[1765521939603,0.4892,3257.5,3257.1,3.07018548]
[1765521940124,3.68368872,3257.6,3257.1,0.457]
[1765521940329,0.36836887,3257.5,3257.1,0.457]
[1765521940630,1.10312536,3257.6,3257.2,0.58047529]
[1765521940825,0.61392536,3257.6,3257.2,0.58047529]
[1765521941026,1.10312536,3257.6,3257.2,0.58047529]
[1765521941520,1.10312536,3257.6,3257.5,0.4542]
[1765521941521,0.61392536,3257.6,3257.5,0.4542]
[1765521942533,3.68366995,3257.6,3257.5,0.4542]
[1765521943639,3.68366995,3257.6,3257.3,0.457]
[1765521943926,1.56772536,3257.6,3257.2,0.58047529]
[1765521944104,1.10712536,3257.6,3257.2,0.58047529]
[1765521944305,0.4606,3257.5,3257.2,0.58047529]
[1765521944820,0.4606,3257.5,3257.2,3.07010835]
[1765521944998,3.06955614,3257.8,3257.1,3.650621]
[1765521945202,0.3314,3257.2,3257.0,3.65074822]
[1765521945402,0.3314,3257.2,3257.0,0.58047529]
[1765521945727,0.4916,3257.1,3257.0,0.58047529]
[1765521946332,0.4916,3257.1,3257.0,3.65078539]
[1765521947535,0.4916,3257.1,3257.0,4.57255623]
[1765521947740,0.9522,3257.1,3257.0,1.50224613]
[1765521949322,0.9522,3257.1,3257.0,0.58047529]
[1765521950024,0.9522,3257.1,3256.9,0.92177084]
[1765521950238,0.333,3257.0,3256.9,0.92177084]
[1765521950451,0.7936,3257.0,3256.9,0.92177084]
[1765521951453,0.7936,3257.0,3256.9,4.5726505]
[1765521952453,0.333,3257.0,3256.9,4.5726505]
[1765521954153,0.4606,3257.2,3257.0,0.58047529]
[1765521954722,0.4606,3257.2,3257.0,3.65075515]
[1765521954924,0.4932,3257.1,3257.0,3.65075515]
[1765521955770,0.484,3257.7,3257.0,3.65075515]
[1765521955935,0.4606,3257.6,3257.1,0.4708]
[1765521957340,0.484,3257.7,3257.2,9.1789479]
[1765521957669,0.4932,3257.3,3257.2,5.65702633]
[1765521958054,0.9538,3257.3,3257.2,5.65702633]
[1765521958453,0.9538,3257.3,3257.1,0.92171137]
[1765521958638,0.792,3257.2,3257.1,0.92171137]
[1765521959481,0.792,3257.2,3257.0,0.58047529]
[1765521959653,0.4916,3257.1,3257.0,0.58047529]
[1765521959991,0.9522,3257.1,3257.0,1.50221498]
[1765521960844,0.9522,3257.1,3255.2,0.001]
[1765521961181,0.7936,3257.0,3256.3,0.92191814]
[1765521961487,0.4932,3255.8,3255.7,0.001]
[1765521961858,0.4932,3255.8,3255.7,0.58147529]
[1765521962039,0.4932,3255.8,3255.7,3.07253607]
[1765521962244,0.9538,3255.8,3255.7,3.07253607]
[1765521965850,0.9538,3255.8,3255.7,0.58147529]
[1765521966360,0.4932,3255.8,3255.7,3.65301136]
[1765521966880,0.484,3256.4,3255.8,0.58047529]
[1765521967086,0.4606,3256.3,3255.8,0.58047529]
[1765521967298,0.6874,3255.9,3255.7,0.58147529]
[1765521967443,0.3218,3255.8,3255.7,0.58147529]
[1765521967802,0.7824,3255.8,3255.7,3.65301136]
[1765521970192,0.7824,3255.8,3255.7,0.58147529]
[1765521970401,0.7824,3255.8,3255.7,0.001]
[1765521974208,1.18718916,3255.8,3255.7,0.001]
[1765521974411,4.25863089,3255.8,3255.7,0.001]
[1765521978504,4.66413489,3255.8,3255.7,0.001]
[1765521978706,4.78712761,3255.8,3255.7,0.001]
[1765521979771,4.38162361,3255.8,3255.7,0.001]
[1765521980003,0.3218,3255.8,3255.7,0.001]
[1765521980799,0.7798,3255.8,3255.7,0.001]
[1765521983613,1.185304,3255.8,3255.7,0.001]
[1765521984202,0.7798,3255.8,3255.7,0.001]
[1765521985090,0.3218,3255.8,3255.7,0.001]
[1765521986317,0.485,3256.0,3255.7,0.474]
[1765521986517,0.84061033,3256.0,3255.8,0.473]
[1765521986713,0.84061033,3256.0,3255.7,0.001]
[1765521987019,1.29861033,3256.0,3255.7,0.001]
[1765521987517,0.4797,3255.8,3255.7,0.001]
[1765521989628,0.9377,3255.8,3255.7,0.001]
[1765521989806,1.11553103,3255.8,3255.7,0.001]
[1765521991820,0.84061033,3256.0,3255.7,0.474]
[1765521992048,0.485,3256.0,3255.7,0.001]
[1765521992194,0.4797,3255.8,3255.7,0.001]
[1765521994715,0.9377,3255.8,3255.7,0.001]
[1765521996909,4.00914173,3255.8,3255.7,0.001]
[1765521997109,0.9377,3255.8,3255.7,0.001]
[1765521997314,1.69423473,3255.8,3255.7,0.001]
[1765521997545,0.9377,3255.8,3255.7,0.001]
[1765521999835,0.485,3256.0,3255.7,0.001]
[1765522000038,0.485,3256.0,3255.7,0.474]
[1765522000268,0.943,3256.0,3255.7,0.474]
[1765522000458,0.943,3256.0,3255.7,0.001]
[1765522000667,0.4797,3255.8,3255.7,0.001]
[1765522002598,0.88329764,3255.8,3255.7,0.001]
[1765522002767,4.41273937,3255.8,3255.7,0.001]
[1765522003094,1.34129764,3255.8,3255.7,0.001]
[1765522003779,4.41273937,3255.8,3255.7,0.001]
[1765522004275,1.34129764,3255.8,3255.7,0.001]
[1765522004670,4.41273937,3255.8,3255.7,0.001]
[1765522005380,4.81824337,3255.8,3255.7,0.001]
[1765522005591,5.52171138,3255.8,3255.7,0.001]
[1765522008195,5.39871866,3255.8,3255.7,0.001]
[1765522011303,5.5217318,3255.8,3255.7,0.001]
[1765522017299,0.405504,3255.7,3255.2,0.0009]
[1765522017501,3.41711349,3255.3,3255.2,0.0009]
[1765522018008,3.90481349,3255.3,3255.2,0.0009]
[1765522022110,3.90481349,3255.3,3255.2,0.4777]
[1765522022111,3.07191349,3255.3,3255.2,0.4777]
[1765522022413,4.02111349,3255.3,3255.2,0.0009]
[1765522022577,4.73040683,3255.3,3255.2,0.0009]
[1765522023505,4.24270683,3255.3,3255.2,0.0009]
[1765522023725,4.73040683,3255.3,3255.2,0.0009]
[1765522024196,4.18671083,3255.3,3255.2,0.9705]
[1765522024399,3.96241749,3255.3,3255.2,0.9705]
[1765522025029,3.96241749,3255.3,3255.2,0.4777]
[1765522025623,4.91161749,3255.3,3255.2,0.0009]
[1765522025997,11.15424509,3255.3,3255.2,0.0009]
[1765522026727,11.27727564,3255.3,3255.2,0.0009]
[1765522026895,12.34758361,3255.3,3255.2,0.0009]
[1765522030638,0.405504,3254.9,3254.3,0.001]
[1765522030937,1.056604,3254.4,3254.3,0.001]
[1765522031126,1.541604,3254.4,3254.3,0.001]
[1765522031310,2.029304,3254.4,3254.3,0.001]
[1765522031511,2.2322344,3254.4,3254.3,0.001]
[1765522031712,2.0413344,3254.4,3254.3,0.001]
[1765522031929,1.5536344,3254.4,3254.3,0.001]
[1765522032128,4.62639742,3254.4,3254.3,0.001]
[1765522034538,5.10659742,3254.4,3254.3,0.001]
[1765522036240,5.68707271,3254.4,3254.3,0.001]
[1765522036949,5.68707271,3254.4,3252.6,0.001]
[1765522036950,0.405504,3253.7,3252.6,0.001]
[1765522037168,0.405504,3253.7,3252.8,0.4955]
[1765522037169,0.485,3253.6,3252.8,0.4955]
[1765522037316,0.405504,3253.5,3252.8,0.4955]
[1765522037854,0.405504,3253.5,3252.6,0.001]
[1765522038225,0.885104,3253.5,3252.7,0.4955]
[1765522038431,0.405504,3253.3,3252.9,0.4965]
[1765522038848,1.10928722,3253.3,3252.9,0.001]
[1765522039053,0.405504,3253.1,3252.9,0.001]
[1765522039272,0.485,3253.0,3252.9,0.001]
[1765522039569,0.890504,3253.0,3252.9,0.001]
[1765522039862,0.890504,3253.0,3252.9,0.4981]
[1765522040229,0.70378322,3253.3,3252.9,0.4981]
[1765522040456,4.18311252,3253.3,3253.2,0.4971]
[1765522040655,0.405504,3253.2,3252.9,0.001]
[1765522040958,0.36652475,3253.1,3252.9,0.001]
[1765522042133,0.872904,3253.0,3252.9,0.001]
[1765522042332,3.94698945,3253.0,3252.9,0.001]
[1765522042654,4.42658945,3253.0,3252.9,0.001]
[1765522043938,4.42658945,3253.0,3252.9,0.4981]
[1765522043939,3.47958945,3253.0,3252.9,0.4981]
[1765522044168,4.65659963,3253.0,3252.9,0.4981]
[1765522044945,0.36652475,3253.1,3252.9,0.9936]
[1765522045135,3.07402775,3253.1,3253.0,0.4971]
[1765522045359,3.55902775,3253.1,3253.0,0.4971]
[1765522045562,4.02642775,3253.1,3252.9,0.001]
[1765522045760,1.219404,3253.0,3252.9,0.001]
[1765522046469,4.87396474,3253.0,3252.9,0.001]
[1765522046682,16.94987636,3253.0,3252.9,0.001]
[1765522046873,13.32191236,3253.0,3252.9,0.001]
[1765522048504,24.66682478,3253.0,3252.9,0.001]
[1765522049282,24.66682478,3253.0,3251.2,0.4955]
[1765522049283,0.4661,3252.4,3251.2,0.4955]
[1765522049607,0.405504,3252.1,3251.1,0.4955]
[1765522049760,0.486,3252.0,3251.1,0.4955]
[1765522050460,0.405504,3251.6,3251.0,0.167]
[1765522050660,0.405504,3251.4,3251.0,0.167]
[1765522051079,0.68186161,3251.4,3251.3,0.4971]
[1765522051757,0.27635761,3251.6,3251.3,0.9926]
[1765522051960,0.27635761,3251.6,3251.5,0.4971]
[1765522052191,0.405504,3251.5,3251.0,0.6625]
[1765522052372,0.56284056,3251.5,3251.0,0.6625]
[1765522052572,0.56284056,3251.5,3251.4,0.4971]
[1765522052573,3.63834417,3251.5,3251.4,0.4971]
[1765522052901,4.12434417,3251.5,3251.4,0.4971]
[1765522055492,3.63834417,3251.5,3251.4,0.4971]
[1765522055713,4.12434417,3251.5,3251.4,0.4971]
[1765522056705,4.12434417,3251.5,3251.4,0.9926]
[1765522057689,3.63834417,3251.5,3251.4,0.9926]
[1765522057887,4.12434417,3251.5,3251.4,0.9926]
[1765522058814,3.35143404,3252.0,3251.4,4.06817533]
[1765522059117,0.4971,3252.1,3251.9,0.4971]
[1765522059315,3.07495932,3252.1,3252.0,0.4971]
[1765522059519,7.10331864,3252.1,3251.2,0.001]
[1765522059722,0.405504,3251.9,3251.2,0.001]
[1765522060016,0.405504,3251.9,3251.3,0.4955]
[1765522060017,0.405504,3251.7,3251.3,0.4955]
[1765522060180,0.405504,3251.5,3251.3,0.4955]
[1765522060631,0.405504,3251.5,3251.4,0.4971]
[1765522061261,0.405504,3251.5,3251.4,0.9926]
[1765522061465,0.486,3251.5,3251.4,0.9926]
[1765522062431,3.07525133,3251.8,3251.4,0.9926]
[1765522062674,3.07525133,3251.8,3251.7,0.4971]
[1765522062972,3.07503075,3252.0,3251.7,0.4971]
[1765522063146,0.486,3251.9,3251.7,0.481]
[1765522063533,0.486,3251.9,3251.8,0.4836]
[1765522063955,3.07497618,3252.1,3251.8,0.4836]
[1765522064153,0.405504,3252.1,3252.0,0.4836]
[1765522064359,0.891504,3252.1,3252.0,0.9646]
[1765522064560,3.96644019,3252.1,3252.0,0.9646]
[1765522065161,3.48044019,3252.1,3252.0,0.9646]
[1765522065359,3.48044019,3252.1,3252.0,6.63705621]
[1765522065360,0.486,3252.1,3252.0,6.63705621]
[1765522065745,0.486,3252.1,3252.0,0.9646]
[1765522066149,0.405504,3252.4,3252.0,0.9646]
[1765522066364,0.486,3252.1,3251.7,8.74772566]
[1765522066692,0.405504,3252.4,3251.2,0.001]
[1765522066693,0.464,3251.8,3251.2,0.001]
[1765522066844,0.98597929,3252.4,3252.3,0.4836]
[1765522066845,0.65547025,3252.4,3252.3,0.4836]
[1765522067046,6.1494942,3252.3,3251.2,0.001]
[1765522067362,6.6584355,3252.2,3251.2,0.001]
[1765522067667,0.405504,3252.0,3251.2,0.001]
[1765522067839,0.405504,3251.8,3251.2,0.001]
[1765522068666,6.2529315,3252.2,3251.2,0.001]
[1765522068667,0.405504,3252.1,3251.7,0.4836]
[1765522068859,0.405504,3251.9,3251.8,0.4836]
[1765522069170,4.1416006,3251.9,3251.8,0.4836]
[1765522069756,3.6556006,3251.9,3251.8,0.4836]
[1765522069958,4.1416006,3251.9,3251.8,0.4836]
[1765522070161,7.21672591,3251.9,3251.5,0.481]
[1765522070359,5.17077606,3251.9,3251.8,0.4836]
[1765522070558,4.68477606,3251.9,3251.8,0.4836]
[1765522070767,4.1416006,3251.9,3251.8,0.9646]
[1765522071271,0.405504,3251.8,3251.3,0.481]
[1765522071470,0.405504,3251.8,3251.7,0.4836]
[1765522071642,0.891504,3251.8,3251.7,0.4836]
[1765522072547,1.807304,3251.8,3251.2,0.001]
[1765522072756,0.85380299,3251.7,3251.2,0.001]
[1765522073174,0.85380299,3251.7,3251.2,0.482]
[1765522073374,6.15081804,3251.6,3251.2,0.482]
[1765522073670,0.486,3251.5,3251.2,0.482]
[1765522074055,0.486,3251.5,3251.4,0.4836]
[1765522075441,3.56150361,3251.5,3251.4,0.4836]
[1765522075969,0.405504,3251.4,3251.3,1.0]
[1765522076162,0.768204,3251.4,3251.3,1.0]
[1765522076778,4.67699487,3251.5,3251.3,1.4836]
[1765522076779,3.07551097,3251.5,3251.3,1.4836]
[1765522076958,3.07551097,3251.5,3251.4,0.4836]
[1765522077157,3.56151097,3251.5,3251.4,0.4836]
[1765522077677,3.07542806,3251.6,3251.4,0.4836]
[1765522077875,0.486,3251.5,3251.3,1.0]
[1765522078244,0.486,3251.5,3251.4,0.4836]
[1765522078651,0.486,3251.5,3251.3,1.0]
[1765522078874,6.15091834,3251.6,3251.4,0.4836]
[1765522079083,0.486,3251.5,3251.3,1.0]
[1765522079490,0.486,3251.5,3251.4,0.4836]
[1765522079694,3.56150361,3251.5,3251.4,0.4836]
[1765522081998,0.486,3251.5,3251.4,0.9646]
[1765522082198,3.075346,3251.7,3251.4,0.9646]
[1765522082397,0.486,3251.5,3251.3,1.0]
[1765522083129,3.075346,3251.7,3251.4,0.9646]
[1765522083396,3.075346,3251.7,3251.6,0.4836]
[1765522083758,3.0752467,3251.8,3251.6,0.4836]
[1765522083963,3.4807507,3251.8,3251.7,0.4836]
[1765522084199,3.4667507,3251.8,3251.7,0.4836]
[1765522084358,3.4667507,3251.8,3251.3,1.481]
[1765522084563,3.4667507,3251.8,3251.7,0.4836]
[1765522087495,6.0559974,3251.8,3251.3,1.0]
[1765522087665,0.486,3251.7,3251.4,0.481]
[1765522088064,0.486,3251.7,3251.6,0.4836]
[1765522088366,3.56131445,3251.7,3251.6,0.4836]
[1765522091900,3.07531445,3251.7,3251.6,0.4836]
[1765522092100,3.56131445,3251.7,3251.6,0.4836]
[1765522094401,3.56131445,3251.7,3251.6,0.9413]
[1765522095305,3.07531445,3251.7,3251.6,0.9413]
[1765522095479,3.56131445,3251.7,3251.6,0.9413]
[1765522097313,3.56131445,3251.7,3251.6,0.4836]
[1765522097483,3.07531445,3251.7,3251.6,0.4836]
[1765522097683,3.56131445,3251.7,3251.6,0.4836]
[1765522098114,3.07531445,3251.7,3251.6,0.4836]
[1765522098292,3.56131445,3251.7,3251.6,0.4836]
[1765522100790,7.1161289,3251.7,3251.3,1.0]
[1765522101513,7.1161289,3251.7,3251.3,1.4543]
[1765522102336,3.0747471,3252.3,3251.6,0.4748]
[1765522102538,0.486,3252.2,3251.8,5.67700072]
[1765522102692,0.4674,3252.9,3252.2,0.4748]
[1765522103022,0.486,3252.8,3252.2,0.4748]
[1765522103824,0.405504,3252.6,3252.2,0.4748]
[1765522104484,6.14911606,3252.5,3252.2,0.4748]
[1765522104815,0.486,3252.4,3252.2,0.4748]
[1765522105218,0.486,3252.4,3252.3,0.4748]
[1765522107624,3.56065256,3252.4,3252.3,0.4748]
[1765522107826,3.56065256,3252.4,3252.3,0.9291]
[1765522108396,3.07465256,3252.4,3252.3,0.9291]
[1765522108726,3.0745921,3252.5,3252.3,0.4748]
[1765522108932,0.486,3252.4,3252.3,0.4543]
[1765522109226,0.486,3252.4,3252.3,0.9291]
[1765522110531,3.07456884,3252.5,3252.3,0.9291]
[1765522110736,3.07456884,3252.5,3252.4,0.4748]
[1765522110932,0.486,3252.5,3252.4,0.9291]
[1765522111606,0.486,3252.5,3252.4,0.4748]
[1765522113038,3.56055803,3252.5,3252.4,0.9291]
[1765522113330,3.56055803,3252.5,3252.4,0.4748]
[1765522113906,3.07455803,3252.5,3252.4,0.4748]
[1765522114105,3.56055803,3252.5,3252.4,0.4748]
[1765522114637,3.56055803,3252.5,3252.4,0.9291]
[1765522114837,3.56055803,3252.5,3252.4,0.4748]
[1765522115033,0.405504,3252.4,3251.9,1.0]
[1765522115330,0.478,3252.0,3251.9,1.0]
[1765522115500,0.964,3252.0,3251.9,1.0]
[1765522116917,4.03903075,3252.0,3251.9,1.0]
[1765522117642,0.486,3252.0,3251.9,1.4748]
[1765522118441,0.486,3252.0,3251.9,1.9291]
[1765522119018,3.07488798,3252.2,3251.9,1.9291]
[1765522119330,0.486,3252.1,3252.0,0.4748]
[1765522119531,3.0747471,3252.3,3251.9,1.0]
[1765522119725,3.0747471,3252.3,3252.2,0.4748]
[1765522119914,3.5607471,3252.3,3252.2,0.4748]
[1765522121247,7.1149942,3252.3,3251.9,1.0]
[1765522121415,7.5823942,3252.3,3251.9,1.0]
[1765522121734,7.1149942,3252.3,3251.9,1.4543]
[1765522121939,4.0402471,3252.3,3251.9,1.4543]
[1765522122117,7.1149942,3252.3,3251.9,1.4543]
[1765522122319,7.1149942,3252.3,3251.9,1.0]
[1765522122511,0.3295,3252.0,3251.9,1.0]
[1765522122957,0.4674,3252.2,3251.9,1.4557]
[1765522123315,3.07493619,3252.1,3251.9,1.4557]
[1765522123851,3.07493619,3252.1,3252.0,0.4557]
[1765522124667,3.07433924,3252.8,3252.0,0.4557]
[1765522124826,0.405504,3252.6,3252.1,0.167]
[1765522125023,0.486,3252.5,3252.1,0.167]
[1765522125331,3.07465256,3252.4,3252.1,0.6259]
[1765522125844,6.14930512,3252.4,3252.1,0.6259]
[1765522126046,6.14930512,3252.4,3251.9,1.0]
[1765522126047,0.405504,3252.1,3251.9,1.0]
[1765522126224,0.486,3252.0,3251.9,1.0]
[1765522126648,0.9446,3252.0,3251.9,1.0]
[1765522127558,4.01963075,3252.0,3251.9,1.0]
[1765522127744,4.47993075,3252.0,3251.9,1.0]
[1765522128855,4.01963075,3252.0,3251.9,1.0]
[1765522129147,0.9446,3252.0,3251.9,1.0]
[1765522129353,0.486,3252.0,3251.9,1.4557]
[1765522129948,0.486,3252.0,3251.9,1.9146]
[1765522130330,3.48008738,3252.5,3251.9,1.9146]
[1765522130539,3.56065256,3252.4,3252.1,0.4557]
[1765522130844,3.07448217,3252.6,3252.4,0.4557]
[1765522131037,0.486,3252.5,3252.4,0.4557]
[1765522131747,3.56055803,3252.5,3252.4,0.4557]
[1765522131961,0.486,3252.5,3252.4,0.4557]
[1765522132257,3.0743896,3252.7,3252.4,0.4557]
[1765522132452,0.486,3252.6,3252.4,0.4557]
[1765522133652,3.07465256,3252.4,3251.9,1.4589]